bitfinex/quotes_ETHUSD_20230119
["timestamp","ask_amount","ask_price","bid_price","bid_amount"]
[1674088250552,24.87108055,1517.3,1516.8,0.06411878]
[1674088250553,1.563,1517.2,1516.8,0.06411878]
[1674088250830,6.17694,1517.2,1516.8,0.00560269]
[1674088251031,6.24294,1517.2,1516.8,0.00560269]
[1674088251408,7.73734,1517.2,1516.8,0.00560269]
[1674088251770,6.73734,1517.2,1516.8,0.00560269]
[1674088252568,6.73734,1517.2,1516.8,14.33605837]
[1674088252569,0.5604,1517.2,1516.8,14.33605837]
[1674088252751,0.4944,1517.2,1516.8,13.24970878]
[1674088252932,12.67497,1517.2,1516.8,0.05851609]
[1674088253142,2.551,1517.1,1516.7,0.15834461]
[1674088253466,0.2551,1517.0,1516.7,0.09982852]
[1674088253657,1.564,1516.9,1516.7,0.09982852]
[1674088253870,6.1787,1516.9,1516.7,0.09982852]
[1674088254078,1.63,1516.9,1516.7,0.09982852]
[1674088254288,1.4745,1516.8,1516.7,0.09982852]
[1674088254877,0.98,1516.8,1516.7,0.09982852]
[1674088257252,0.817,1516.8,1516.7,0.09982852]
[1674088262378,10.04694,1516.8,1516.7,0.09982852]
[1674088262633,25.82124,1516.8,1516.7,0.09982852]
[1674088262845,24.25724,1516.8,1516.7,0.09982852]
[1674088263641,24.25724,1516.8,1516.7,0.09772058]
[1674088263849,26.13557521,1516.8,1516.7,0.09772058]
[1674088264180,25.45077466,1516.8,1516.7,0.09772058]
[1674088265038,13.93233466,1516.8,1516.7,0.09772058]
[1674088265275,5.57103466,1516.8,1516.7,0.09772058]
[1674088269992,4.3775,1516.8,1516.7,0.09772058]
[1674088270152,4.3115,1516.8,1516.7,0.09772058]
[1674088272187,1.3115,1516.8,1516.7,0.09772058]
[1674088274567,0.4945,1516.8,1516.7,0.09772058]
[1674088275049,1.3115,1516.8,1516.7,0.09772058]
[1674088279568,8.48712,1516.8,1516.7,0.09772058]
[1674088279784,11.55312,1516.8,1516.7,0.09772058]
[1674088280385,16.16809,1516.8,1516.7,0.09772058]
[1674088280558,17.16809,1516.8,1516.7,0.09772058]
[1674088283752,16.16809,1516.8,1516.7,0.09772058]
[1674088283962,16.16809,1516.8,1516.7,0.09380183]
[1674088284737,17.16809,1516.8,1516.7,0.09380183]
[1674088285073,22.64557932,1516.8,1516.7,0.09380183]
[1674088285244,22.87557932,1516.8,1516.7,0.09380183]
[1674088286920,23.56037987,1516.8,1516.7,0.09380183]
[1674088289574,24.5875807,1516.8,1516.7,0.09380183]
[1674088290178,23.90278015,1516.8,1516.7,0.09380183]
[1674088290756,23.90278015,1516.8,1516.1,0.15726224]
[1674088290757,0.09299817,1516.7,1516.1,0.15726224]
[1674088290907,0.09299817,1516.7,1516.1,0.09474615]
[1674088290908,1.561,1516.3,1516.1,0.09474615]
[1674088291321,10.79423,1516.3,1516.1,0.09474615]
[1674088291533,1.079423,1516.2,1516.1,0.09474615]
[1674088291785,5.696223,1516.2,1516.1,0.09474615]
[1674088292005,5.762223,1516.2,1516.1,0.09474615]
[1674088295889,29.93721,1516.4,1516.2,1.15575446]
[1674088296215,3.066,1516.4,1516.2,1.15575446]
[1674088296379,3.0,1516.4,1516.2,1.15575446]
[1674088300818,7.61621,1516.4,1516.2,1.15575446]
[1674088301038,9.423095,1516.4,1516.2,1.15575446]
[1674088303885,3.066,1516.4,1516.2,1.15575446]
[1674088304054,3.0,1516.4,1516.2,1.15575446]
[1674088313753,0.066,1516.5,1516.2,15.91045446]
[1674088313967,0.066,1516.6,1516.3,1.553]
[1674088314120,0.066,1516.6,1516.2,14.40897055]
[1674088314121,4.61566,1516.6,1516.2,3.64739263]
[1674088314340,4.61566,1516.6,1516.2,1.15575446]
[1674088314341,9.23132,1516.6,1516.2,1.15575446]
[1674088314552,9.29732,1516.6,1516.2,1.15575446]
[1674088316448,9.98171758,1516.6,1516.2,1.15575446]
[1674088320178,12.72671,1516.5,1516.2,1.15575446]
[1674088320341,14.86044639,1516.5,1516.2,1.15575446]
[1674088321092,14.86044639,1516.5,1516.1,8.00176224]
[1674088321284,14.86044639,1516.5,1516.2,1.0]
[1674088321495,3.5606,1516.5,1516.2,1.0]
[1674088321712,3.4946,1516.5,1516.2,7.59531]
[1674088321941,3.4946,1516.5,1516.2,7.65782609]
[1674088322338,3.4946,1516.5,1516.2,6.65782609]
[1674088322711,5.95751334,1516.5,1516.2,0.06251609]
[1674088322931,10.63944334,1516.5,1516.1,9.71984599]
[1674088323077,10.63944334,1516.5,1516.1,8.00176224]
[1674088323277,10.63944334,1516.5,1516.1,9.71984599]
[1674088324038,8.86092758,1516.5,1516.1,13.46597146]
[1674088324256,8.86092758,1516.5,1516.1,14.46597146]
[1674088325180,8.86092758,1516.5,1516.1,13.46597146]
[1674088326068,8.86092758,1516.5,1516.1,9.71984599]
[1674088327853,8.86092758,1516.5,1516.1,8.00176224]
[1674088328055,8.86092758,1516.5,1516.1,10.71984599]
[1674088328215,8.86092758,1516.5,1516.1,9.71984599]
[1674088329067,8.86092758,1516.5,1516.2,1.0]
[1674088329280,8.86092758,1516.5,1516.2,2.0719846]
[1674088329281,4.24499758,1516.5,1516.2,2.0719846]
[1674088329602,15.93565151,1516.6,1516.3,2.69832812]
[1674088329603,0.066,1516.6,1516.3,2.69832812]
[1674088329795,3.68439758,1516.6,1516.4,6.59456]
[1674088330010,3.68439758,1516.6,1516.4,6.65707609]
[1674088330221,3.0,1516.6,1516.4,7.65707609]
[1674088330892,3.0,1516.6,1516.4,9.3375587]
[1674088332121,3.0,1516.6,1516.5,1.0]
[1674088332363,11.24499758,1516.7,1516.5,1.0]
[1674088332364,0.066,1516.7,1516.6,1.22146809]
[1674088332577,0.68439758,1516.9,1516.6,17.77403353]
[1674088332736,0.68439758,1516.9,1516.7,1.564]
[1674088333950,0.68439758,1516.9,1516.7,2.564]
[1674088334162,2.30438757,1517.0,1516.7,1.564]
[1674088334318,2.30438757,1517.0,1516.8,0.1564]
[1674088334846,0.09889363,1517.0,1516.8,0.1564]
[1674088335054,0.09889363,1517.0,1516.8,1.7064]
[1674088335265,0.09889363,1517.0,1516.8,2.7064]
[1674088335464,0.09889363,1517.0,1516.9,1.05964]
[1674088335691,0.78329121,1517.0,1516.9,1.05964]
[1674088336148,0.78329121,1517.0,1516.9,3.62364]
[1674088336149,0.09889363,1517.0,1516.9,3.62364]
[1674088336416,0.09889363,1517.0,1516.9,10.21603]
[1674088336674,0.09889363,1517.0,1516.9,10.27854609]
[1674088337785,0.09889363,1517.0,1516.9,16.87093609]
[1674088338672,0.09889363,1517.0,1516.9,24.64603609]
[1674088340303,0.09045546,1517.2,1517.0,2.46460361]
[1674088340523,0.09045546,1517.3,1517.2,1.0]
[1674088340860,0.09045546,1517.4,1517.3,1.0]
[1674088341079,0.09045546,1517.4,1517.3,14.1813]
[1674088341286,0.09045546,1517.4,1517.3,17.1358537]
[1674088341500,0.10071815,1517.6,1517.4,1.09]
[1674088341677,0.10071815,1517.6,1517.5,22.89034]
[1674088341886,0.10071815,1517.6,1517.5,22.95285609]
[1674088342126,0.09756384,1517.6,1517.5,22.95285609]
[1674088342361,0.09756384,1517.6,1517.5,25.8119417]
[1674088343081,0.09756384,1517.6,1517.5,24.2549417]
[1674088343351,0.09756384,1517.6,1517.5,17.6651617]
[1674088344663,0.09756384,1517.6,1517.5,0.06251609]
[1674088344883,0.09756384,1517.6,1517.3,22.8394037]
[1674088345241,0.09756384,1517.6,1517.3,14.6847537]
[1674088345718,0.09756384,1517.6,1517.3,16.2487537]
[1674088345865,0.09756384,1517.6,1517.4,1.62487537]
[1674088347803,0.09756384,1517.6,1517.4,1.62487537]
[1674088350549,0.09756384,1517.6,1517.4,8.21506537]
[1674088350703,0.09756384,1517.6,1517.4,8.27758146]
[1674088352211,0.09756384,1517.6,1517.4,14.86780146]
[1674088352861,0.09756384,1517.6,1517.4,16.42180146]
[1674088353178,0.09756384,1517.6,1517.5,4.20618015]
[1674088353325,0.09756384,1517.6,1517.5,23.41484461]
[1674088353326,1e-08,1517.6,1517.5,23.41484461]
[1674088353541,1e-08,1517.6,1517.5,24.07746242]
[1674088353764,1e-08,1517.6,1517.5,32.32916242]
[1674088354397,1e-08,1517.6,1517.5,27.84848744]
[1674088355418,1e-08,1517.6,1517.5,42.48116242]
[1674088355541,1e-08,1517.6,1517.5,42.97546242]
[1674088355868,0.00055969,1517.7,1517.5,42.97546242]
[1674088356096,0.00055969,1517.7,1517.6,23.82424624]
[1674088356316,0.00055969,1517.7,1517.6,35.28943731]
[1674088356500,0.00055969,1517.7,1517.6,32.40529353]
[1674088356868,0.00055969,1517.7,1517.6,37.38026851]
[1674088357025,0.10050022,1517.8,1517.6,48.96196851]
[1674088357245,0.10050022,1517.8,1517.7,8.02419685]
[1674088357493,0.09417835,1517.9,1517.7,21.49453294]
[1674088357649,0.09417835,1517.9,1517.8,6.117]
[1674088357882,0.09417835,1517.9,1517.8,20.35647609]
[1674088358298,0.09417835,1517.9,1517.8,20.95300729]
[1674088358550,0.09417835,1517.9,1517.8,25.1857097]
[1674088358922,0.09417835,1517.9,1517.8,29.66638468]
[1674088359150,0.10233812,1518.1,1517.9,0.094]
[1674088359336,0.10233812,1518.1,1518.0,29.69744]
[1674088359547,0.10233812,1518.1,1518.0,30.35648729]
[1674088359793,0.10233812,1518.1,1518.0,36.16425602]
[1674088360389,0.10233812,1518.1,1518.0,43.08625602]
[1674088360662,0.10233812,1518.1,1518.0,46.08625602]
[1674088362857,0.10233812,1518.1,1518.0,50.566931]
[1674088363525,0.10232614,1518.4,1518.1,12.20801917]
[1674088363671,0.05,1518.8,1518.3,29.42665949]
[1674088364018,0.12297632,1518.9,1518.7,1.553]
[1674088364232,0.07297632,1518.9,1518.8,19.75242]
[1674088364380,0.07297632,1518.9,1518.8,24.18824559]
[1674088364748,0.07297632,1518.9,1518.8,27.79151145]
[1674088365355,8.576,1519.4,1518.9,10.942]
[1674088365356,0.066,1519.4,1518.9,10.942]
[1674088365568,2.5808046,1519.8,1519.3,8.13297]
[1674088365781,2.5808046,1519.8,1519.3,0.06251609]
[1674088366023,2.5808046,1519.8,1519.1,0.06251609]
[1674088366024,0.75168046,1519.7,1519.1,0.06251609]
[1674088366196,1.75168046,1519.7,1519.0,14.68925609]
[1674088366413,0.07516805,1519.6,1519.0,16.8165197]
[1674088366743,0.12297632,1519.3,1519.0,16.8165197]
[1674088367207,0.12297632,1519.3,1519.0,8.7727197]
[1674088368069,0.12297632,1519.3,1519.0,0.06251609]
[1674088368400,0.12297632,1519.3,1518.8,16.72785609]
[1674088368704,0.61667632,1519.3,1518.8,16.72785609]
[1674088368902,0.61667632,1519.3,1518.8,6.64665609]
[1674088369111,0.61667632,1519.3,1518.8,8.1261527]
[1674088370113,0.61667632,1519.3,1518.8,9.6801527]
[1674088370291,0.61667632,1519.3,1518.8,16.2642927]
[1674088370679,0.12297632,1519.3,1518.8,16.2642927]
[1674088371118,0.12297632,1519.3,1518.9,1.562]
[1674088371326,0.12297632,1519.3,1518.9,9.21772078]
[1674088371572,0.12297632,1519.3,1518.9,9.28023687]
[1674088375038,0.07297632,1519.3,1518.9,15.86394687]
[1674088376108,0.07297632,1519.3,1518.9,7.71823687]
[1674088376459,0.07297632,1519.3,1518.9,14.30194687]
[1674088378722,0.07297632,1519.3,1519.0,15.59631469]
[1674088378939,0.07297632,1519.3,1519.0,15.65883078]
[1674088379243,0.07297632,1519.3,1519.0,14.65883078]
[1674088380082,0.07297632,1519.3,1519.0,15.65883078]
[1674088380241,0.07297632,1519.3,1519.0,17.22083078]
[1674088380464,0.07297632,1519.3,1519.2,6.58241]
[1674088380694,0.07297632,1519.3,1519.2,6.64492609]
[1674088381717,0.07297632,1519.3,1519.2,13.22733609]
[1674088384189,0.88997632,1519.3,1519.2,0.06251609]
[1674088384364,0.88997632,1519.3,1519.0,8.07561078]
[1674088385195,0.88997632,1519.3,1519.0,0.06251609]
[1674088385415,4.68044632,1519.3,1518.9,15.47793687]
[1674088385625,4.68044632,1519.3,1518.9,7.71823687]
[1674088386237,0.07297632,1519.3,1518.9,14.30194687]
[1674088386416,0.07297632,1519.3,1519.0,1.43019469]
[1674088386619,0.07297632,1519.3,1519.0,9.01343469]
[1674088386771,0.07297632,1519.3,1519.0,9.07595078]
[1674088387415,0.07297632,1519.3,1519.0,8.07595078]
[1674088387983,0.07297632,1519.3,1519.1,0.80759508]
[1674088388199,0.07297632,1519.3,1519.2,6.58241]
[1674088388410,0.07297632,1519.3,1519.2,6.64492609]
[1674088388717,0.07297632,1519.3,1519.2,7.64492609]
[1674088388886,0.07297632,1519.3,1519.2,14.22733609]
[1674088389083,0.07297632,1519.3,1519.2,15.38908521]
[1674088389772,0.07297632,1519.3,1519.2,16.38908521]
[1674088390008,1e-08,1519.3,1519.2,17.95108521]
[1674088390316,0.0048046,1519.8,1519.3,1.07199999]
[1674088390515,0.0048046,1519.8,1519.4,27.89016]
[1674088390658,0.0048046,1519.8,1519.4,27.95267609]
[1674088391134,0.0048046,1519.8,1519.5,14.1617]
[1674088391346,0.0048046,1519.8,1519.5,17.1173457]
[1674088391922,0.0048046,1519.8,1519.6,1.562]
[1674088392172,0.0048046,1519.8,1519.7,6.58024]
[1674088392365,0.0048046,1519.8,1519.7,14.21899609]
[1674088392581,0.0048046,1519.8,1519.7,15.77599609]
[1674088392925,0.0048046,1519.8,1519.7,18.0120387]
[1674088393964,0.0048046,1519.8,1519.7,18.0176307]
[1674088395027,0.0048046,1519.8,1519.7,18.62089656]
[1674088395237,0.0048046,1519.8,1519.7,23.17389656]
[1674088395397,0.0048046,1519.8,1519.7,27.65457154]
[1674088395603,0.0048046,1519.8,1519.7,27.65257154]
[1674088395966,0.13334953,1520.1,1519.7,23.17389656]
[1674088396186,0.13763323,1520.1,1520.0,1.564]
[1674088396333,0.13763323,1520.1,1520.0,8.14294]
[1674088396549,0.13763323,1520.1,1520.0,9.20145609]
[1674088396804,0.13763323,1520.1,1520.0,16.4584447]
[1674088397279,0.13763323,1520.1,1520.0,9.8795047]
[1674088397806,0.13763323,1520.1,1520.0,17.4584447]
[1674088404128,0.04603815,1520.5,1520.1,7.922]
[1674088404337,0.04603815,1520.5,1520.3,24.75265949]
[1674088404555,3.815e-05,1520.5,1520.4,41.71151498]
[1674088404768,3.815e-05,1520.5,1520.4,45.60843107]
[1674088404951,3.815e-05,1520.5,1520.4,41.23762195]
[1674088405792,3.815e-05,1520.5,1520.4,39.67562195]
[1674088406145,3.815e-05,1520.5,1520.4,21.61850423]
[1674088406896,3.815e-05,1520.5,1520.4,23.18050423]
[1674088407688,3.815e-05,1520.5,1520.4,21.61850423]
[1674088409001,3.815e-05,1520.5,1520.4,9.63572609]
[1674088409190,0.81703815,1520.5,1520.4,0.05851609]
[1674088409406,3.815e-05,1520.5,1520.3,6.63607609]
[1674088409634,3.815e-05,1520.5,1520.3,9.1513037]
[1674088410686,0.15086313,1520.6,1520.4,1.0]
[1674088410899,0.15086313,1520.6,1520.4,15.71642]
[1674088411057,0.15086313,1520.6,1520.4,15.77493609]
[1674088411438,0.15086313,1520.6,1520.5,14.73105361]
[1674088411579,0.15086313,1520.6,1520.5,14.7895697]
[1674088411785,0.15086313,1520.6,1520.5,15.7895697]
[1674088412641,0.15086313,1520.6,1520.5,14.7895697]
[1674088413731,0.15086313,1520.6,1520.5,8.2127897]
[1674088414091,0.15086313,1520.6,1520.5,0.05851609]
[1674088414326,0.15086313,1520.6,1520.3,9.1513037]
[1674088415918,0.15086313,1520.6,1520.3,15.7289437]
[1674088416085,0.15086313,1520.6,1520.3,9.1513037]
[1674088417103,0.4933,1520.5,1520.3,0.05851609]
[1674088417267,4.60405,1520.4,1520.0,0.06251609]
[1674088417625,9.2081,1520.4,1519.9,6.63770609]
[1674088417792,0.460405,1520.3,1519.9,0.05851609]
[1674088417981,4.60471,1520.2,1519.8,6.63828609]
[1674088418312,9.20942,1520.2,1519.8,0.05851609]
[1674088418524,9.20942,1520.2,1519.7,6.63858609]
[1674088418525,10.65542,1520.2,1519.7,6.63858609]
[1674088418730,12.2767815,1520.2,1519.7,3.0755577]
[1674088418948,12.2767815,1520.2,1519.6,0.06251609]
[1674088418949,1.373,1520.0,1519.6,0.06251609]
[1674088419137,1.373,1520.0,1519.5,0.06347589]
[1674088419138,13.81622,1520.0,1519.5,0.06347589]
[1674088419347,1.9978,1519.9,1519.5,0.06347589]
[1674088419560,6.60358,1519.9,1519.5,0.06347589]
[1674088419822,7.66958,1519.9,1519.5,0.06347589]
[1674088420276,6.66958,1519.9,1519.5,0.06347589]
[1674088420558,11.27536,1519.9,1519.5,0.06347589]
[1674088420778,0.5595,1519.9,1519.5,0.06347589]
[1674088420941,0.4935,1519.9,1519.5,13.22549589]
[1674088421150,10.7231,1520.0,1519.5,13.28601198]
[1674088421485,10.7231,1520.0,1519.7,6.58018]
[1674088421716,10.7231,1520.0,1519.7,6.63869609]
[1674088422028,10.2296,1520.0,1519.7,7.63869609]
[1674088422204,0.066,1520.0,1519.8,0.76386961]
[1674088422420,5.98046,1520.0,1519.7,0.06251609]
[1674088422764,10.65192,1520.0,1519.5,0.06347589]
[1674088422937,6.47923,1519.9,1519.5,0.06347589]
[1674088423133,6.54523,1519.9,1519.5,0.06347589]
[1674088423931,11.15096,1519.9,1519.5,0.06347589]
[1674088426020,1.9395,1519.9,1519.5,0.46982348]
[1674088426229,10.6478,1520.0,1519.5,13.63202348]
[1674088426450,10.6478,1520.0,1519.6,1.0]
[1674088426608,10.6478,1520.0,1519.7,6.68019]
[1674088426823,0.066,1520.0,1519.7,6.73870609]
[1674088427158,0.4935,1520.1,1519.7,6.73870609]
[1674088428441,0.4935,1520.1,1519.7,0.15851609]
[1674088428652,6.05074,1520.2,1519.7,13.26037]
[1674088428828,0.066,1520.2,1519.9,1.0]
[1674088429185,17.44104,1520.3,1519.8,7.905817]
[1674088429330,17.44104,1520.3,1519.8,7.96433309]
[1674088430957,17.44104,1520.3,1519.9,0.79643331]
[1674088431117,16.06104,1520.3,1519.9,0.79643331]
[1674088432563,16.06104,1520.3,1519.8,14.54811309]
[1674088432767,20.6656,1520.3,1519.8,1.38455309]
[1674088433030,1.38,1520.2,1519.6,6.64286609]
[1674088433191,5.98519,1520.1,1519.6,6.63886609]
[1674088433405,6.54469,1520.1,1519.6,7.96760529]
[1674088433861,1.0,1520.0,1519.6,7.96760529]
[1674088434081,2.38,1520.0,1519.6,6.63886609]
[1674088434461,1.38,1520.0,1519.6,6.63886609]
[1674088435420,5.98529,1520.0,1519.6,6.63886609]
[1674088435635,6.05129,1520.0,1519.6,7.96760529]
[1674088435852,0.066,1520.0,1519.6,14.54827529]
[1674088436086,0.4935,1520.1,1519.6,14.54827529]
[1674088436258,0.4935,1520.1,1519.8,6.57972]
[1674088436475,0.4935,1520.1,1519.8,0.05851609]
[1674088436665,0.4935,1520.1,1519.7,8.09327362]
[1674088438559,5.09846,1520.1,1519.7,1.51334362]
[1674088438763,11.14942,1520.1,1519.7,1.45482753]
[1674088439134,11.14942,1520.1,1519.6,7.97190529]
[1674088439350,11.14942,1520.1,1519.6,7.96790529]
[1674088439710,6.54446,1520.1,1519.6,7.96790529]
[1674088439973,6.54446,1520.1,1519.6,14.54857529]
[1674088441926,6.54446,1520.1,1519.6,15.54857529]
[1674088442141,6.54446,1520.1,1519.7,1.55485753]
[1674088442783,1.9395,1520.1,1519.7,8.13507753]
[1674088443136,9.8137,1520.2,1519.8,7.57977]
[1674088443322,0.066,1520.2,1519.8,14.21809609]
[1674088443509,0.0319,1520.3,1519.8,14.21809609]
[1674088443510,19.44,1520.4,1519.9,4.42180961]
[1674088443728,19.44,1520.4,1520.0,13.15788]
[1674088443938,11.4783,1520.4,1520.1,1.0]
[1674088444268,11.4783,1520.4,1520.1,7.57848]
[1674088444440,0.5594,1520.4,1520.1,7.63699609]
[1674088444655,0.4934,1520.4,1520.1,9.7168837]
[1674088444914,2.62369758,1520.5,1520.1,9.7168837]
[1674088445070,2.55769758,1520.5,1520.1,9.7168837]
[1674088445496,2.55769758,1520.5,1520.1,8.7168837]
[1674088447198,3.58429394,1520.5,1520.1,8.7168837]
[1674088447653,2.55769758,1520.5,1520.1,8.7168837]
[1674088447889,1.17769758,1520.5,1520.2,0.87168837]
[1674088448038,1.17769758,1520.5,1520.2,8.44971837]
[1674088448257,1.17769758,1520.5,1520.2,7.50823446]
[1674088448603,2.20429394,1520.5,1520.2,7.50823446]
[1674088448987,1.17769758,1520.5,1520.2,7.50823446]
[1674088449183,1.71099394,1520.5,1520.2,7.50823446]
[1674088450499,1.71099394,1520.5,1520.2,0.05851609]
[1674088450649,2.06439758,1520.4,1520.1,0.05851609]
[1674088450859,2.06439758,1520.3,1519.9,11.0596157]
[1674088451292,3.06439758,1520.3,1519.9,11.0596157]
[1674088451528,2.06439758,1520.3,1519.9,11.0596157]
[1674088451808,0.066,1520.4,1520.3,0.79142798]
[1674088452049,0.83526071,1520.6,1520.3,13.94670798]
[1674088452255,0.83526071,1520.6,1520.3,14.00522407]
[1674088452479,0.83526071,1520.6,1520.4,7.97767241]
[1674088452694,0.83526071,1520.6,1520.4,8.0361885]
[1674088452861,0.83526071,1520.6,1520.4,14.6133985]
[1674088454550,0.15086313,1520.6,1520.4,14.6133985]
[1674088455228,0.15086313,1520.6,1520.5,1.0]
[1674088455379,0.15086313,1520.6,1520.5,15.71489985]
[1674088455592,0.15086313,1520.6,1520.5,15.77341594]
[1674088456326,0.15086313,1520.6,1520.5,14.77341594]
[1674088456775,0.15086313,1520.6,1520.5,14.77005989]
[1674088457816,0.15086313,1520.6,1520.5,15.77005989]
[1674088458712,0.15086313,1520.6,1520.5,14.77005989]
[1674088458901,0.15086313,1520.6,1520.5,15.77005989]
[1674088459606,0.15086313,1520.6,1520.5,14.77005989]
[1674088465018,0.15086313,1520.6,1520.5,15.77005989]
[1674088465403,0.15086313,1520.6,1520.5,14.77005989]
[1674088466499,0.96786313,1520.6,1520.5,6.63529609]
[1674088466818,0.96786313,1520.6,1520.5,0.05851609]
[1674088466960,0.15086313,1520.6,1520.4,6.63566609]
[1674088467589,0.15086313,1520.6,1520.4,13.21287609]
[1674088468451,0.15086313,1520.6,1520.4,16.0091645]
[1674088469591,0.15086313,1520.6,1520.4,17.0091645]
[1674088469799,0.15086313,1520.6,1520.4,16.0091645]
[1674088471831,0.15086313,1520.6,1520.4,6.63566609]
[1674088472042,0.15086313,1520.6,1520.4,0.05851609]
[1674088472356,0.15086313,1520.6,1520.3,6.63826407]
[1674088473956,0.15086313,1520.6,1520.3,0.06094407]
[1674088474144,0.47504884,1520.6,1520.3,0.00242798]
[1674088474325,1.15944642,1520.6,1520.3,0.00242798]
[1674088474877,1.373,1520.4,1520.3,0.00242798]
[1674088475068,7.35705,1520.4,1520.3,0.00242798]
[1674088475258,9.29996739,1520.4,1520.3,0.00242798]
[1674088475681,19.26766739,1520.4,1520.3,0.00242798]
[1674088475932,24.55611497,1520.4,1520.3,0.00242798]
[1674088476563,19.95206497,1520.4,1520.3,0.00242798]
[1674088476782,19.26766739,1520.4,1520.3,0.00242798]
[1674088476943,10.0337,1520.4,1520.3,0.00242798]
[1674088478137,0.0007137,1520.3,1520.1,0.05851609]
[1674088478386,0.0007137,1520.3,1520.0,6.63718609]
[1674088479837,12.09809758,1520.4,1520.0,7.9592097]
[1674088479838,11.89881128,1520.4,1520.0,7.9592097]
[1674088479993,11.96481128,1520.4,1520.0,15.5421497]
[1674088480206,9.9004137,1520.4,1520.0,15.5421497]
[1674088480448,0.066,1520.4,1520.1,1.55421497]
[1674088480660,1.39456071,1520.6,1520.2,19.73424]
[1674088480942,1.32856071,1520.6,1520.2,20.79675609]
[1674088481184,1.32856071,1520.6,1520.4,6.57721]
[1674088481352,1.32856071,1520.6,1520.4,6.63972609]
[1674088481809,0.83526071,1520.6,1520.4,7.63972609]
[1674088482426,0.83526071,1520.6,1520.4,6.63972609]
[1674088485409,0.15086313,1520.6,1520.4,6.63972609]
[1674088485627,0.15086313,1520.6,1520.4,16.40435826]
[1674088486505,0.15086313,1520.6,1520.5,1.0]
[1674088487032,0.15086313,1520.6,1520.5,14.15356]
[1674088487288,0.15086313,1520.6,1520.5,14.21607609]
[1674088487885,0.15086313,1520.6,1520.5,13.21607609]
[1674088488128,0.15086313,1520.6,1520.5,15.51414692]
[1674088488665,1.65226071,1520.6,1520.5,0.06251609]
[1674088488819,1.65226071,1520.6,1520.3,6.63984609]
[1674088489492,2.67885707,1520.6,1520.3,6.63984609]
[1674088490415,0.68439758,1520.5,1520.3,6.63984609]
[1674088490606,0.68439758,1520.5,1520.3,7.9616337]
[1674088490813,1.555,1520.4,1520.3,0.06251609]
[1674088491083,1.555,1520.4,1520.0,6.64139609]
[1674088491084,2.73279758,1520.4,1520.0,6.64139609]
[1674088491295,2.23970412,1520.3,1520.0,0.06251609]
[1674088491443,2.23970412,1520.3,1519.9,13.22062609]
[1674088493040,1.18110412,1520.2,1519.9,0.06251609]
[1674088493293,1.18110412,1520.2,1519.8,0.0042837]
[1674088493294,1.553,1520.0,1519.8,0.0042837]
[1674088493570,1.552,1519.9,1519.8,0.0042837]
[1674088496452,6.22626,1520.0,1519.8,0.0042837]
[1674088496665,8.16904996,1520.0,1519.8,0.0042837]
[1674088497621,0.4935,1519.9,1519.8,0.0042837]
[1674088497830,2.0485,1519.9,1519.8,0.0042837]
[1674088498141,11.25962,1519.9,1519.8,0.0042837]
[1674088498329,13.29881791,1519.9,1519.8,0.0042837]
[1674088501280,13.29881791,1519.9,1519.8,0.00132036]
[1674088501607,0.5595,1519.9,1519.8,0.00132036]
[1674088501836,0.4935,1519.9,1519.8,0.00132036]
[1674088502225,2.0425,1520.0,1519.8,0.00132036]
[1674088503982,3.0425,1520.0,1519.8,0.00132036]
[1674088504184,0.30425,1519.9,1519.8,0.00132036]
[1674088505267,11.07037,1519.9,1519.8,0.00132036]
[1674088505457,12.62987,1519.9,1519.8,0.00132036]
[1674088506441,12.62987,1519.9,1519.8,0.00592846]
[1674088506442,0.066,1519.9,1519.8,0.00592846]
[1674088506659,18.1506,1520.1,1519.8,0.00592846]
[1674088506660,22.82162,1520.1,1519.8,0.00592846]
[1674088507040,27.42675,1520.1,1519.8,0.00592846]
[1674088507213,18.2166,1520.1,1519.8,0.00592846]
[1674088507364,10.0352,1520.1,1519.8,0.6704863]
[1674088507581,0.066,1520.1,1519.8,16.3850963]
[1674088507784,11.3026,1520.3,1519.8,16.44761239]
[1674088508027,11.3026,1520.3,1519.9,14.80301124]
[1674088508243,11.3026,1520.3,1519.9,14.86552733]
[1674088509357,15.90706,1520.3,1519.9,1.70727733]
[1674088509645,15.90706,1520.3,1519.8,7.31280239]
[1674088510150,15.90706,1520.3,1519.8,13.89261239]
[1674088510364,11.3026,1520.3,1519.9,1.0]
[1674088510523,11.3026,1520.3,1520.0,0.1]
[1674088510732,11.3026,1520.3,1520.0,6.67887]
[1674088510995,11.3026,1520.3,1520.0,6.74138609]
[1674088511363,0.5594,1520.3,1520.0,6.74138609]
[1674088511631,0.4934,1520.3,1520.0,6.74138609]
[1674088513084,11.25721,1520.3,1520.0,0.06251609]
[1674088513306,1.555,1520.2,1519.8,0.00592846]
[1674088513460,4.60496,1520.1,1519.8,0.00592846]
[1674088515091,10.9213,1520.2,1519.8,13.16548846]
[1674088515306,10.9213,1520.2,1519.8,14.22800455]
[1674088515454,10.9213,1520.2,1519.8,13.22800455]
[1674088515664,10.9213,1520.2,1519.9,1.32280045]
[1674088515929,10.9213,1520.2,1519.9,7.90202045]
[1674088516084,10.9213,1520.2,1519.9,7.96453654]
[1674088516755,10.9213,1520.2,1519.9,6.64173609]
[1674088517193,10.9213,1520.2,1519.9,7.64173609]
[1674088518501,0.066,1520.2,1519.9,14.22111609]
[1674088518708,10.824,1520.4,1520.0,1.382]
[1674088518980,10.824,1520.4,1520.1,19.87346]
[1674088519289,0.066,1520.4,1520.1,19.93597609]
[1674088519502,0.4933,1520.5,1520.2,7.57786]
[1674088519818,0.4933,1520.5,1520.2,8.7339177]
[1674088521182,0.4933,1520.5,1520.2,6.64037609]
[1674088525980,0.4933,1520.5,1520.2,6.63705854]
[1674088526417,0.49090912,1520.5,1520.2,6.63705854]
[1674088526827,10.97486313,1520.6,1520.2,13.21513854]
[1674088527038,10.97486313,1520.6,1520.3,15.47645385]
[1674088527249,10.97486313,1520.6,1520.3,16.92096994]
[1674088527250,0.21686313,1520.6,1520.3,16.92096994]
[1674088527499,0.15086313,1520.6,1520.5,19.73034]
[1674088527717,0.16282875,1520.8,1520.5,19.73034]
[1674088527718,0.16282875,1520.8,1520.5,21.90409009]
[1674088528536,0.16282875,1520.8,1520.6,1.0]
[1674088528875,0.11282875,1520.8,1520.7,13.15182]
[1674088529028,0.11282875,1520.8,1520.7,13.21433609]
[1674088529245,0.11282875,1520.8,1520.7,15.2933657]
[1674088530212,0.11282875,1520.8,1520.7,0.06251609]
[1674088530413,0.11282875,1520.8,1520.6,6.63847609]
[1674088532406,0.11282875,1520.8,1520.6,0.06251609]
[1674088532759,0.11282875,1520.8,1520.5,0.06251609]